bitfinex/quotes_BTCUSD_20250127
["timestamp","ask_amount","ask_price","bid_price","bid_amount"]
[1737943809409,0.416512,101370.0,101360.0,0.09885862]
[1737943810060,0.416512,101370.0,101360.0,0.0104459]
[1737943810705,0.416552,101370.0,101360.0,0.0104459]
[1737943811133,0.316552,101370.0,101360.0,0.0104459]
[1737943811558,0.416552,101370.0,101360.0,0.0104459]
[1737943811762,0.316552,101370.0,101360.0,0.0104459]
[1737943812591,0.316552,101370.0,101360.0,0.1584329]
[1737943812799,0.316552,101370.0,101360.0,0.0104459]
[1737943813401,0.166552,101370.0,101360.0,0.0104459]
[1737943813633,0.166552,101370.0,101360.0,0.1584329]
[1737943814172,0.01858,101370.0,101360.0,0.1584329]
[1737943814823,0.166552,101370.0,101360.0,0.0104459]
[1737943815021,0.01858,101370.0,101360.0,0.25578019]
[1737943815243,0.01858,101370.0,101360.0,0.57887529]
[1737943815394,0.01858,101370.0,101360.0,0.60187529]
[1737943815795,0.01858,101370.0,101360.0,1.46387529]
[1737943816249,0.01858,101370.0,101360.0,1.60387529]
[1737943816448,0.01858,101370.0,101360.0,1.29548019]
[1737943816651,0.01858,101370.0,101360.0,0.73388019]
[1737943816856,0.01858,101370.0,101360.0,0.75388019]
[1737943817177,0.01858,101370.0,101360.0,0.92027529]
[1737943817592,0.01858,101370.0,101360.0,0.92127529]
[1737943818099,0.01858,101370.0,101360.0,0.92027529]
[1737943818409,0.01858,101370.0,101360.0,0.92227529]
[1737943818607,0.01858,101370.0,101360.0,0.91427529]
[1737943818972,0.01858,101370.0,101360.0,0.91727529]
[1737943819174,0.166552,101370.0,101360.0,0.71888019]
[1737943819517,0.166552,101370.0,101360.0,0.69588019]
[1737943819654,0.01858,101370.0,101360.0,0.72588019]
[1737943819860,0.01858,101370.0,101360.0,0.72288019]
[1737943820056,0.01858,101370.0,101360.0,0.72788019]
[1737943820268,0.01858,101370.0,101360.0,0.72288019]
[1737943820469,0.01858,101370.0,101360.0,0.91427529]
[1737943820672,0.01858,101370.0,101360.0,0.91227529]
[1737943820989,0.01858,101370.0,101360.0,0.91327529]
[1737943821459,0.01858,101370.0,101360.0,0.91227529]
[1737943821837,0.01858,101370.0,101360.0,0.91327529]
[1737943822815,0.01858,101370.0,101360.0,0.91627529]
[1737943823486,0.01858,101370.0,101360.0,0.89627529]
[1737943823670,0.166552,101370.0,101360.0,0.69488019]
[1737943824028,0.01858,101370.0,101360.0,0.69488019]
[1737943824231,0.166552,101370.0,101360.0,0.54689319]
[1737943824440,0.166552,101370.0,101360.0,0.0034459]
[1737943824441,0.316552,101370.0,101360.0,0.0034459]
[1737943824860,0.317552,101370.0,101360.0,0.0004459]
[1737943825286,0.316552,101370.0,101360.0,0.0004459]
[1737943825684,0.317552,101370.0,101360.0,0.0004459]
[1737943826088,0.01958,101370.0,101360.0,0.24578019]
[1737943826337,0.01958,101370.0,101360.0,0.41417529]
[1737943826567,0.167552,101370.0,101360.0,0.24578019]
[1737943826766,0.167552,101370.0,101360.0,0.09779319]
[1737943826968,0.167552,101370.0,101360.0,0.24578019]
[1737943827636,0.01958,101370.0,101360.0,0.54387529]
[1737943828059,0.01958,101370.0,101360.0,0.74257529]
[1737943829560,0.01958,101370.0,101360.0,0.74557529]
[1737943830212,0.01858,101370.0,101360.0,0.74557529]
[1737943830418,0.01858,101370.0,101360.0,0.75445473]
[1737943830627,0.01858,101370.0,101360.0,0.75545473]
[1737943831887,0.01628687,101370.0,101360.0,0.94323794]
[1737943832104,0.01054755,101410.0,101400.0,0.147928]
[1737943832314,0.01054755,101410.0,101400.0,0.78605168]
[1737943832519,0.01054755,101410.0,101400.0,0.91046549]
[1737943832735,4e-05,101420.0,101410.0,0.177914]
[1737943832924,4e-05,101420.0,101410.0,0.61665639]
[1737943833161,4e-05,101420.0,101410.0,0.74085639]
[1737943833789,4e-05,101420.0,101410.0,1.60285639]
[1737943834105,9.2e-07,101430.0,101420.0,0.6434941]
[1737943834310,0.0868214,101440.0,101430.0,0.305085]
[1737943834511,0.0868214,101440.0,101430.0,1.13242739]
[1737943836213,0.0868214,101440.0,101430.0,1.13442739]
[1737943836858,0.00029736,101460.0,101450.0,0.200856]
[1737943837062,0.0004456,101460.0,101450.0,0.46659839]
[1737943838106,0.0024456,101460.0,101450.0,0.46659839]
[1737943838983,0.0024456,101460.0,101450.0,0.29820329]
[1737943839195,0.0024456,101460.0,101450.0,0.61659839]
[1737943839394,0.0024456,101460.0,101450.0,1.06119839]
[1737943840121,0.0004456,101460.0,101450.0,1.06119839]
[1737943840527,0.0199856,101460.0,101450.0,1.06119839]
[1737943841176,0.0189856,101460.0,101450.0,1.06119839]
[1737943841409,0.0189856,101460.0,101450.0,1.06319839]
[1737943842288,0.0189856,101460.0,101450.0,1.60479839]
[1737943842741,0.0189856,101460.0,101450.0,1.61279839]
[1737943842945,0.0189856,101460.0,101450.0,1.62159305]
[1737943845676,0.000298,101480.0,101470.0,0.7888162]
[1737943845879,0.00079223,101480.0,101470.0,0.90916349]
[1737943846095,2.3e-07,101480.0,101470.0,0.90916349]
[1737943846568,2.3e-07,101480.0,101470.0,2.69940653]
[1737943846782,0.0001415,101490.0,101480.0,0.70884524]
[1737943846985,0.0001415,101490.0,101480.0,1.67819253]
[1737943848229,0.0001415,101490.0,101480.0,1.57975439]
[1737943848437,0.0001415,101490.0,101480.0,1.74814949]
[1737943848575,0.0001415,101490.0,101480.0,1.77514949]
[1737943848772,0.0001415,101490.0,101480.0,1.58375439]
[1737943848985,0.0001415,101490.0,101480.0,1.43375439]
[1737943849196,0.0001415,101490.0,101480.0,0.49285439]
[1737943849425,0.0001415,101490.0,101480.0,0.27915929]
[1737943849622,0.0001415,101490.0,101480.0,0.44755439]
[1737943849824,0.0001415,101490.0,101480.0,0.45255439]
[1737943850071,0.0001415,101490.0,101480.0,0.44355439]
[1737943850378,0.0001415,101490.0,101480.0,0.46955439]
[1737943850586,0.0186815,101490.0,101480.0,0.46655439]
[1737943851021,0.0186815,101490.0,101480.0,0.46955439]
[1737943851229,0.0186815,101490.0,101480.0,0.78794949]
[1737943851765,0.0186815,101490.0,101480.0,0.61955439]
[1737943853181,0.0186815,101490.0,101480.0,0.59655439]
[1737943853598,0.0186815,101490.0,101480.0,0.61955439]
[1737943853875,0.0186815,101490.0,101480.0,0.46955439]
[1737943854359,0.0186815,101490.0,101480.0,0.46655439]
[1737943854604,0.0196815,101490.0,101480.0,0.46655439]
[1737943855023,0.0186815,101490.0,101480.0,0.63494949]
[1737943855452,0.0186815,101490.0,101480.0,0.46655439]
[1737943856142,0.0186815,101490.0,101480.0,0.26515929]
[1737943856340,0.1664785,101490.0,101480.0,0.24515929]
[1737943856541,0.0186815,101490.0,101480.0,0.46655439]
[1737943856747,0.0186815,101490.0,101480.0,0.78494949]
[1737943856970,0.0196815,101490.0,101480.0,0.86814949]
[1737943857806,0.0186815,101490.0,101480.0,0.86814949]
[1737943858360,0.0186815,101490.0,101480.0,0.87614949]
[1737943860281,0.0186815,101490.0,101480.0,0.90771849]
[1737943860517,0.0186815,101490.0,101480.0,0.91033035]
[1737943860731,0.0186815,101490.0,101480.0,0.87814949]
[1737943860942,0.0001414,101520.0,101510.0,0.02]
[1737943861141,0.00028964,101520.0,101510.0,0.52671039]
[1737943861390,0.00028964,101520.0,101510.0,0.59631039]
[1737943861663,0.00028964,101520.0,101510.0,1.60831039]
[1737943861863,0.00028964,101520.0,101510.0,1.63787939]
[1737943862448,0.00028964,101520.0,101510.0,1.60831039]
[1737943863315,0.00228964,101520.0,101510.0,1.60831039]
[1737943863881,0.00028964,101520.0,101510.0,1.58612953]
[1737943864865,0.00128964,101520.0,101510.0,1.58612953]
[1737943865190,0.00128964,101520.0,101510.0,1.56312953]
[1737943865398,0.00028964,101520.0,101510.0,1.27551039]
[1737943865607,0.14804364,101520.0,101510.0,0.56551529]
[1737943865826,0.14804364,101520.0,101510.0,0.57458114]
[1737943866010,0.147768,101510.0,101500.0,0.3]
[1737943866163,0.147768,101510.0,101500.0,0.39734729]
[1737943866362,0.147768,101510.0,101500.0,0.3]
[1737943867386,0.262268,101510.0,101500.0,0.3]
[1737943868059,0.264268,101510.0,101500.0,0.3]
[1737943868749,0.164268,101510.0,101500.0,0.3]
[1737943869843,0.149768,101510.0,101500.0,0.3]
[1737943871311,0.1552548,101510.0,101500.0,0.3]
[1737943871975,0.1552548,101510.0,101500.0,0.54513029]
[1737943872119,0.1552548,101510.0,101500.0,0.39734729]
[1737943872310,0.1552548,101510.0,101500.0,0.54513029]
[1737943872517,0.1552548,101510.0,101500.0,0.39734729]
[1737943872930,0.1552548,101510.0,101500.0,0.54513029]
[1737943873141,0.02054,101510.0,101500.0,0.55294943]
[1737943873311,0.02054,101510.0,101500.0,0.72134453]
[1737943873886,0.02054,101510.0,101500.0,0.87811076]
[1737943874033,0.01854,101510.0,101500.0,0.87811076]
[1737943874271,0.01854,101510.0,101500.0,1.02811076]
[1737943874480,0.01954,101510.0,101500.0,1.02811076]
[1737943876452,0.01954,101510.0,101500.0,0.62539652]
[1737943876715,0.167308,101510.0,101500.0,0.42801352]
[1737943876915,0.167308,101510.0,101500.0,0.3]
[1737943877453,0.267308,101510.0,101500.0,0.3]
[1737943877660,0.167308,101510.0,101500.0,0.3]
[1737943878073,0.166308,101510.0,101500.0,0.3]
[1737943878480,0.169308,101510.0,101500.0,0.3]
[1737943880118,0.169308,101510.0,101500.0,0.30029715]
[1737943880345,0.166308,101510.0,101500.0,0.30029715]
[1737943880701,0.169308,101510.0,101500.0,0.30029715]
[1737943881116,0.51883615,101510.0,101500.0,0.30029715]
[1737943881475,0.41883615,101510.0,101500.0,0.30029715]
[1737943882092,0.43965529,101510.0,101500.0,0.30029715]
[1737943882490,0.43965529,101510.0,101500.0,0.28579715]
[1737943882893,0.43965529,101510.0,101500.0,0.1235999]
[1737943882894,0.53965529,101510.0,101500.0,0.1235999]
[1737943883103,0.420783,101500.0,101490.0,1.58656805]
[1737943883314,1.11223358,101500.0,101490.0,1.56626905]
[1737943883527,1.00754058,101500.0,101490.0,1.50771506]
[1737943884137,1.30754058,101500.0,101490.0,0.63296148]
[1737943884553,1.31354058,101500.0,101490.0,0.63396148]
[1737943884782,1.35166787,101500.0,101490.0,0.63396148]
[1737943884992,1.35166787,101500.0,101490.0,0.56496147]
[1737943885173,1.34566787,101500.0,101490.0,0.48513747]
[1737943885376,1.03043977,101500.0,101490.0,0.46643147]
[1737943885584,0.90933858,101500.0,101490.0,0.46643147]
[1737943885736,0.93043977,101500.0,101490.0,0.46643147]
[1737943885947,0.93943977,101500.0,101490.0,0.46743147]
[1737943886157,0.93043977,101500.0,101490.0,0.38760747]
[1737943886517,0.86492814,101500.0,101490.0,0.35530148]
[1737943886750,0.78083533,101500.0,101490.0,0.35530148]
[1737943886959,0.78783533,101500.0,101490.0,0.35630148]
[1737943887162,0.86673414,101500.0,101490.0,0.29718348]
[1737943887378,0.86673414,101500.0,101490.0,0.25777148]
[1737943887761,0.7869144,101500.0,101490.0,0.25777148]
[1737943887896,0.8869144,101500.0,101490.0,0.25777148]
[1737943888115,0.7869144,101500.0,101490.0,0.15924148]
[1737943888326,0.8869144,101500.0,101490.0,0.15924148]
[1737943889156,0.720797,101490.0,101480.0,2.41162307]
[1737943889355,1.96059587,101490.0,101480.0,2.27679574]
[1737943889613,2.05527587,101490.0,101480.0,2.17733573]
[1737943890019,2.05527587,101490.0,101480.0,2.15762773]
[1737943890225,2.05527587,101490.0,101480.0,2.07879573]
[1737943890427,1.65147587,101490.0,101480.0,2.07879573]
[1737943890649,1.95847587,101490.0,101480.0,2.07979573]
[1737943890853,1.96347587,101490.0,101480.0,2.08079573]
[1737943891059,2.44415587,101490.0,101480.0,2.03937973]
[1737943891235,1.84020158,101490.0,101480.0,1.98025573]
[1737943891446,1.84920158,101490.0,101480.0,1.98125573]
[1737943891865,1.87030277,101490.0,101480.0,1.98125573]
[1737943892074,1.88057375,101490.0,101480.0,1.87431373]
[1737943892292,1.88057375,101490.0,101480.0,1.83489773]
[1737943892484,1.99337375,101490.0,101480.0,1.83589773]
[1737943892686,1.99337375,101490.0,101480.0,1.83340925]
[1737943892928,1.99337375,101490.0,101480.0,1.8327064]
[1737943892929,1.98437375,101490.0,101480.0,1.8327064]
[1737943893152,1.96327256,101490.0,101480.0,1.7351664]
[1737943893368,1.85731056,101490.0,101480.0,1.7341664]
[1737943893764,1.85731056,101490.0,101480.0,1.7351664]
[1737943893765,1.86531056,101490.0,101480.0,1.7351664]
[1737943894185,1.86531056,101490.0,101480.0,1.6760424]
[1737943894397,1.88753866,101490.0,101480.0,1.58126403]
[1737943894641,2.20863985,101490.0,101480.0,1.22546446]
[1737943894778,2.51601616,101490.0,101480.0,0.54662997]
[1737943895019,2.51601616,101490.0,101480.0,0.312739]
[1737943895235,2.51601616,101490.0,101480.0,0.199219]
[1737943895589,2.51601616,101490.0,101480.0,0.07047027]
[1737943896119,0.62716129,101480.0,101470.0,1.74319254]
[1737943896319,4.72745958,101480.0,101470.0,1.74319254]
[1737943896520,5.25095158,101480.0,101470.0,1.74319254]
[1737943896751,4.76005558,101480.0,101470.0,1.74319254]
[1737943897111,4.76005558,101480.0,101470.0,1.61761254]
[1737943897329,4.76905558,101480.0,101470.0,1.57819254]
[1737943897530,4.76905558,101480.0,101470.0,1.57919254]
[1737943897734,4.77705558,101480.0,101470.0,1.49839519]
[1737943897849,4.77705558,101480.0,101470.0,1.3055081]
[1737943898059,5.47924058,101480.0,101470.0,0.44927342]
[1737943898270,6.05329478,101480.0,101470.0,0.18710462]
[1737943898457,6.05329478,101480.0,101470.0,0.03475276]
[1737943898661,6.05329478,101480.0,101470.0,0.02756883]
[1737943898870,6.04529478,101480.0,101470.0,0.02656883]
[1737943899142,6.04529478,101480.0,101410.0,6.912e-05]
[1737943899143,0.19716,101440.0,101410.0,6.912e-05]
[1737943899438,0.19716,101440.0,101410.0,0.00056335]
[1737943899439,0.147899,101420.0,101410.0,0.00056335]
[1737943899637,0.73792629,101420.0,101410.0,0.00056335]
[1737943900732,0.74692629,101420.0,101410.0,0.00156335]
[1737943901151,0.749579,101420.0,101410.0,0.00156335]
[1737943901363,0.653579,101420.0,101410.0,0.00156335]
[1737943901515,0.672119,101420.0,101410.0,0.00156335]
[1737943902522,0.52422,101420.0,101410.0,0.08266335]
[1737943902725,0.672119,101420.0,101410.0,0.20368519]
[1737943902950,0.52170288,101420.0,101410.0,0.35159919]
[1737943903155,0.52170288,101420.0,101410.0,0.37208029]
[1737943903358,0.52170288,101420.0,101410.0,0.20368519]
[1737943903646,0.51770288,101420.0,101410.0,0.66999429]
[1737943903825,0.52070288,101420.0,101410.0,0.66999429]
[1737943904031,0.51170288,101420.0,101410.0,0.66899429]
[1737943904245,0.50870288,101420.0,101410.0,0.66899429]
[1737943904766,0.50870288,101420.0,101410.0,0.66929165]
[1737943904968,0.50253224,101420.0,101410.0,0.76663894]
[1737943905413,0.50353224,101420.0,101410.0,0.76663894]
[1737943905750,0.50253224,101420.0,101410.0,0.76663894]
[1737943906030,0.50253224,101420.0,101410.0,0.78663894]
[1737943906646,0.50253224,101420.0,101410.0,0.78863894]
[1737943907081,0.01854,101420.0,101410.0,0.78863894]
[1737943907505,0.01854,101420.0,101410.0,0.79912641]
[1737943909566,0.01854,101420.0,101410.0,0.80694555]
[1737943910522,0.01854,101420.0,101410.0,0.82994555]
[1737943910752,0.25812818,101450.0,101430.0,0.147876]
[1737943910943,0.11027118,101450.0,101430.0,0.5609138]
[1737943911140,0.25812818,101450.0,101430.0,0.5609138]
[1737943911350,0.11027118,101450.0,101440.0,0.15]
[1737943911561,0.1,101450.0,101440.0,0.15]
[1737943911999,0.542117,101460.0,101440.0,0.15]
[1737943912204,0.147856,101450.0,101440.0,0.24734729]
[1737943912846,0.155856,101450.0,101440.0,0.24734729]
[1737943913414,0.163856,101450.0,101440.0,0.24834729]
[1737943913820,0.28492415,101450.0,101440.0,0.001]
[1737943914028,0.29720415,101450.0,101440.0,0.001]
[1737943914201,0.29420415,101450.0,101440.0,0.001]
[1737943914644,0.295676,101450.0,101440.0,0.001]
[1737943914857,0.01954,101450.0,101430.0,0.645043]
[1737943915196,0.368538,101450.0,101430.0,0.80786949]
[1737943915354,0.371538,101450.0,101430.0,1.00504949]
[1737943915573,0.02654,101450.0,101430.0,1.20222949]
[1737943915744,0.174396,101450.0,101440.0,0.2312]
[1737943916157,0.274396,101450.0,101440.0,0.2312]
[1737943916375,0.28213845,101450.0,101440.0,0.32331965]
[1737943916569,0.26913845,101450.0,101440.0,0.32231965]
[1737943917015,0.26613845,101450.0,101440.0,0.32231965]
[1737943917425,0.26813845,101450.0,101440.0,0.32231965]
[1737943917798,0.26613845,101450.0,101440.0,0.32231965]
[1737943918005,0.27113845,101450.0,101440.0,0.32664794]
[1737943918248,0.27313845,101450.0,101440.0,0.32664794]
[1737943918414,0.27328005,101450.0,101440.0,0.32664794]
[1737943919195,0.27328005,101450.0,101440.0,0.08552829]
[1737943919387,0.27062734,101450.0,101440.0,0.00432829]
[1737943919806,0.37062734,101450.0,101440.0,0.00432829]
[1737943920208,0.2728082,101450.0,101440.0,0.00432829]
[1737943920655,0.3728082,101450.0,101440.0,0.00432829]
[1737943922740,0.37062734,101450.0,101440.0,0.00432829]
[1737943922944,0.17328005,101450.0,101440.0,0.00432829]
[1737943925513,0.02542405,101450.0,101440.0,0.60019339]
[1737943925717,0.02542405,101450.0,101440.0,0.69754068]
[1737943925930,0.02542405,101450.0,101440.0,0.54967068]
[1737943926165,0.17328005,101450.0,101440.0,0.38127558]
[1737943926344,0.17328005,101450.0,101440.0,0.28392829]
[1737943926770,0.02542405,101450.0,101440.0,0.60019339]
[1737943926919,0.02542405,101450.0,101440.0,0.45232339]
[1737943927134,0.03570793,101450.0,101440.0,0.45232339]
[1737943927557,0.03570793,101450.0,101440.0,0.69754068]
[1737943927758,0.03570793,101450.0,101440.0,0.79488797]
[1737943928106,0.02542405,101450.0,101440.0,0.79488797]
[1737943928678,0.02542405,101450.0,101440.0,0.81503459]
[1737943929469,0.02542405,101450.0,101440.0,0.82443835]
[1737943930300,0.02542405,101450.0,101440.0,1.02065259]
[1737943930468,0.02542405,101450.0,101440.0,0.85225749]
[1737943930853,0.02542405,101450.0,101440.0,0.8479292]
[1737943931058,0.02542405,101450.0,101440.0,0.84822656]
[1737943931279,0.01842405,101450.0,101440.0,0.84822656]
[1737943932201,0.02042405,101450.0,101440.0,0.40679503]
[1737943932502,0.02042405,101450.0,101440.0,0.56936374]
[1737943933291,0.16828005,101450.0,101440.0,0.42149374]
[1737943933504,0.16828005,101450.0,101440.0,0.30944774]
[1737943934113,0.02042405,101450.0,101440.0,0.68971103]
[1737943934308,0.02042405,101450.0,101440.0,0.81487746]
[1737943936562,0.02042405,101450.0,101440.0,0.87083085]
[1737943938288,0.02042405,101450.0,101440.0,0.86301171]
[1737943938633,0.02042405,101450.0,101440.0,0.87083085]
[1737943939060,0.02042405,101450.0,101440.0,1.03883024]
[1737943940649,0.00030003,101450.0,101440.0,1.03883024]
[1737943940854,0.01028329,101480.0,101470.0,0.448526]
[1737943941083,0.01028329,101480.0,101470.0,0.82874763]
[1737943941292,0.0001416,101490.0,101480.0,0.05081914]
[1737943941495,0.0001416,101490.0,101480.0,0.36663053]
[1737943941708,0.0001416,101490.0,101480.0,0.46397782]
[1737943941922,0.0001416,101490.0,101480.0,0.54637782]
[1737943942089,0.0001416,101490.0,101480.0,0.637526]
[1737943942643,0.0001416,101490.0,101480.0,0.686326]
[1737943943067,0.0051416,101490.0,101480.0,0.686326]
[1737943943270,0.00519099,101490.0,101480.0,0.67850686]
[1737943943894,0.00719099,101490.0,101480.0,0.65850686]
[1737943944097,0.00719099,101490.0,101480.0,0.686326]
[1737943944407,0.01873099,101490.0,101480.0,0.6781745]
[1737943944614,0.01873099,101490.0,101480.0,0.70599364]
[1737943944885,0.01973099,101490.0,101480.0,0.70599364]
[1737943945454,0.01973099,101490.0,101480.0,0.51518164]
[1737943945650,0.01973099,101490.0,101480.0,0.2812]
[1737943945852,0.01973099,101490.0,101480.0,0.1312]
[1737943945853,0.16752799,101490.0,101480.0,0.1312]
[1737943946204,0.16752799,101490.0,101480.0,0.0488]
[1737943947051,0.147812,101480.0,101470.0,0.55636488]
[1737943947255,0.166352,101480.0,101470.0,0.31930907]
[1737943947460,0.166352,101480.0,101470.0,0.40085368]
[1737943947664,0.01854,101480.0,101470.0,0.71667907]
[1737943947873,0.01854,101480.0,101470.0,0.98402636]
[1737943948202,0.01854,101480.0,101470.0,0.98502636]
[1737943949003,0.01854,101480.0,101470.0,0.9928455]
[1737943949210,0.01854,101480.0,101470.0,1.0982455]
[1737943949411,0.01854,101480.0,101470.0,1.1002455]
[1737943950759,0.01854,101480.0,101470.0,1.06942636]
[1737943950963,0.01854,101480.0,101470.0,1.04942636]
[1737943951551,0.11854,101480.0,101470.0,0.70253507]
[1737943951764,0.11854,101480.0,101470.0,0.55470907]
[1737943951962,0.01854,101480.0,101470.0,0.70253507]
[1737943952621,0.01854,101480.0,101470.0,0.70053507]
[1737943953020,0.01854,101480.0,101470.0,0.86853446]
[1737943953225,0.01854,101480.0,101470.0,1.07004818]
[1737943954182,0.01954,101480.0,101470.0,1.09004818]
[1737943954383,0.01959069,101480.0,101470.0,1.09004818]
[1737943954570,0.01973229,101480.0,101470.0,1.09004818]
[1737943955323,0.01973229,101480.0,101470.0,1.15944818]
[1737943957812,0.00019099,101490.0,101480.0,0.34863114]
[1737943958018,0.00019099,101490.0,101480.0,1.0038245]
[1737943958221,0.0104275,101510.0,101500.0,0.30010214]
[1737943958453,0.01047688,101510.0,101500.0,0.73844882]
[1737943960089,0.00019088,101510.0,101500.0,0.73844882]
[1737943960494,0.00019088,101510.0,101500.0,0.74044882]
[1737943960692,0.00019088,101510.0,101500.0,0.81621233]
[1737943961093,0.01873088,101510.0,101500.0,0.82321233]
[1737943961413,0.01873088,101510.0,101500.0,0.81821233]
[1737943961742,0.01973088,101510.0,101500.0,0.82521233]
[1737943961948,0.01973088,101510.0,101500.0,0.82721233]
[1737943962102,0.01973088,101510.0,101500.0,1.14761233]
[1737943962307,0.00468088,101510.0,101500.0,1.14761233]
[1737943962513,0.0001814,101540.0,101530.0,0.32555814]
[1737943962714,0.0001814,101540.0,101530.0,0.67530863]
[1737943963848,0.0011814,101540.0,101530.0,0.67530863]
[1737943964197,0.0011814,101540.0,101530.0,0.4994901]
[1737943964670,0.0011814,101540.0,101530.0,0.50730924]
[1737943964871,0.0011814,101540.0,101530.0,0.4994901]
[1737943965071,0.0011814,101540.0,101530.0,0.50730924]
[1737943965300,0.0011814,101540.0,101530.0,0.4794901]
[1737943965423,0.0011814,101540.0,101530.0,0.4994901]
[1737943966045,0.0011814,101540.0,101530.0,0.67530863]
[1737943966659,0.0001814,101540.0,101530.0,0.67630863]
[1737943967070,0.0001814,101540.0,101530.0,0.67830863]
[1737943967494,0.0187214,101540.0,101530.0,0.67830863]
[1737943968689,0.0187214,101540.0,101530.0,0.62212363]
[1737943968889,0.0187214,101540.0,101530.0,0.63146591]
[1737943969293,0.0187214,101540.0,101530.0,0.65103839]
[1737943972079,0.0187214,101540.0,101530.0,0.86435278]
[1737943972277,0.0187214,101540.0,101530.0,0.80225639]
[1737943972481,0.0187214,101540.0,101530.0,0.79793839]
[1737943973290,1e-08,101540.0,101530.0,0.79793839]
[1737943975515,1e-08,101540.0,101530.0,0.77793839]
[1737943975717,1e-08,101540.0,101530.0,0.77011925]
[1737943975872,1e-08,101540.0,101530.0,0.77793839]
[1737943976043,1e-08,101540.0,101530.0,0.77493839]
[1737943976667,1e-08,101540.0,101530.0,0.79793839]
[1737943977766,1e-08,101540.0,101530.0,1.77175278]
[1737943978404,0.00014151,101540.0,101530.0,1.77175278]
[1737943979244,0.00014151,101540.0,101530.0,0.90975278]
[1737943979444,0.00014151,101540.0,101530.0,0.79693839]
[1737943979647,0.00114151,101540.0,101530.0,0.79793839]
[1737943979857,0.00214151,101540.0,101530.0,0.80693839]
[1737943980301,0.00214151,101540.0,101530.0,0.78693839]
[1737943980639,0.00214151,101540.0,101530.0,0.80693839]
[1737943980814,0.00114151,101540.0,101530.0,0.77793839]
[1737943981132,0.00214151,101540.0,101530.0,0.80693839]
[1737943981316,0.00114151,101540.0,101530.0,0.90675278]
[1737943981499,0.00114151,101540.0,101530.0,0.77493839]
[1737943981708,0.00214151,101540.0,101530.0,0.78393839]
[1737943981910,0.0001416,101550.0,101540.0,0.19854414]
[1737943982085,0.0001416,101550.0,101540.0,1.66095311]
[1737943982086,0.00028976,101550.0,101540.0,1.66095311]
[1737943982275,0.00028976,101550.0,101540.0,1.74494836]
[1737943982472,0.00028976,101550.0,101540.0,1.7327675]
[1737943982701,0.00028976,101550.0,101540.0,1.7297675]
[1737943983109,0.00028976,101550.0,101540.0,1.05635311]
[1737943983304,0.00028976,101550.0,101540.0,1.1681675]
[1737943983640,0.00128976,101550.0,101540.0,1.06835311]
[1737943983811,0.00128976,101550.0,101540.0,1.1801675]
[1737943984412,0.8374451,101590.0,101570.0,0.297678]
[1737943984709,0.147666,101580.0,101570.0,0.23033174]
[1737943984910,0.147666,101580.0,101560.0,0.52563939]
[1737943984911,0.147684,101570.0,101560.0,0.15]
[1737943985115,0.66508,101580.0,101560.0,0.494622]
[1737943985561,0.665078,101580.0,101560.0,0.494622]
[1737943985763,0.147681,101570.0,101560.0,0.15]
[1737943985989,0.147681,101570.0,101560.0,0.297695]
[1737943986320,0.166221,101570.0,101560.0,0.39504229]
[1737943986543,0.01854,101570.0,101560.0,0.39504229]
[1737943986876,0.01854,101570.0,101560.0,0.50685668]
[1737943987230,0.01854,101570.0,101560.0,0.50785668]
[1737943987672,0.01854,101570.0,101560.0,0.39604229]
[1737943987872,0.166221,101570.0,101560.0,0.39704229]
[1737943988414,0.166221,101570.0,101560.0,0.24934729]
[1737943988615,0.16613178,101570.0,101560.0,0.39704229]
[1737943988816,0.01845078,101570.0,101560.0,0.39704229]
[1737943989011,0.01845078,101570.0,101560.0,0.50885668]
[1737943989264,0.01845078,101570.0,101560.0,0.50785668]
[1737943989778,0.01845078,101570.0,101560.0,0.39604229]
[1737943989974,0.01945078,101570.0,101560.0,0.39504229]
[1737943990270,0.16713178,101570.0,101560.0,0.39504229]
[1737943990476,0.16813178,101570.0,101560.0,0.24734729]
[1737943990832,0.16913178,101570.0,101560.0,0.24734729]
[1737943991035,0.16927318,101570.0,101560.0,0.24734729]
[1737943991616,0.02159218,101570.0,101560.0,0.50685668]
[1737943992930,0.02159218,101570.0,101560.0,0.39504229]
[1737943993128,0.16927318,101570.0,101560.0,0.24734729]
[1737943993759,0.16927318,101570.0,101560.0,0.39504229]
[1737943994526,0.02159218,101570.0,101560.0,0.39504229]
[1737943994959,0.16927318,101570.0,101560.0,0.39504229]
[1737943995343,0.16927318,101570.0,101560.0,0.24734729]
[1737943995344,0.19227318,101570.0,101560.0,0.24734729]
[1737943995543,0.16927318,101570.0,101560.0,0.24734729]
[1737943995987,0.19227318,101570.0,101560.0,0.24734729]
[1737943996217,0.19227318,101570.0,101560.0,0.39504229]
[1737943996597,0.19227318,101570.0,101560.0,0.24734729]
[1737944000616,0.270695,101560.0,101550.0,0.32967156]
[1737944000823,0.270695,101560.0,101550.0,0.47738156]
[1737944001057,0.023,101560.0,101550.0,0.47738156]
[1737944002035,0.023,101560.0,101550.0,0.47938156]
[1737944002215,0.023,101560.0,101550.0,0.57672885]
[1737944002415,0.0231414,101560.0,101550.0,0.57672885]
[1737944002930,0.1708364,101560.0,101550.0,0.56695508]
[1737944003135,0.2708364,101560.0,101550.0,0.28053754]
[1737944006321,0.2893764,101560.0,101550.0,0.28053754]
[1737944007168,0.2893764,101560.0,101550.0,0.27953754]
[1737944007691,0.2913764,101560.0,101550.0,0.27953754]
[1737944008453,0.2913764,101560.0,101550.0,0.27853754]
[1737944008671,0.2913764,101560.0,101550.0,0.52359483]
[1737944008872,0.0436814,101560.0,101550.0,0.52359483]
[1737944009422,0.1933764,101560.0,101550.0,0.52359483]
[1737944009953,0.0456814,101560.0,101550.0,0.52359483]
[1737944012109,0.1703764,101560.0,101550.0,0.37588483]
[1737944012314,0.1703764,101560.0,101550.0,0.52359483]
[1737944012527,0.0226814,101560.0,101550.0,0.52359483]
[1737944013854,0.0206814,101560.0,101550.0,0.52359483]
[1737944014284,0.0226814,101560.0,101550.0,0.52359483]
[1737944014488,0.0206814,101560.0,101550.0,0.52359483]
[1737944014665,0.0226814,101560.0,101550.0,0.53818361]
[1737944015317,0.0206814,101560.0,101550.0,0.53818361]
[1737944015730,0.1703764,101560.0,101550.0,0.53818361]
[1737944016143,0.0206814,101560.0,101550.0,0.53818361]
[1737944016557,0.0216814,101560.0,101550.0,0.52389177]
[1737944018434,0.0216814,101560.0,101550.0,0.54403787]
[1737944018637,0.0216814,101560.0,101550.0,0.8786043]
[1737944021939,0.0216814,101560.0,101550.0,1.01041869]
[1737944022668,0.01788073,101560.0,101550.0,1.01041869]
[1737944024818,0.01788073,101560.0,101550.0,1.16973308]
[1737944025844,0.01688073,101560.0,101550.0,1.16973308]
[1737944026044,0.01688073,101560.0,101550.0,1.05991869]
[1737944026449,0.01688073,101560.0,101550.0,1.17173308]
[1737944026833,0.01688073,101560.0,101550.0,1.05991869]